Workbook

Sheet Riffle Sizing
B1: SPSC Sizing Spreadsheet
B2: (Based on Anne Arundel County SPSC Guidelines, Revised 07/2022)
B4: Designer must select/input
B5: Calculated value/Designer shall not change
B6: Default values provided. Advanced designer may change to customize to site specific design
B8: Riffle Weir Sizing
C9: Q100 | D9: Q10 | E9: Q2
B10: Design Flow (cfs) | C10: 0.0 | D10: 0.0 | E10: 0.0
B11: Width (ft) | C11: 10.0 | D11: =C11 -> 10.0 | E11: =C11 -> 10.0
B12: L, Length (ft) | C12: 10.0 | D12: 10.0 | E12: 10.0
B13: H, Height (ft) | C13: 1.0 | D13: 1.0 | E13: 1.0
B14: Design Depth of flow (ft) | C14: =C16 -> 0.67 | D14: 0.67 | E14: 0.67
B15: D50 (in) | C15: =IF(C10<=B45,C45,IF(C10<=B46,C46,IF(C10<=B47,C47,IF(C10<=B48,C48,IF(C10<=B49,C49,IF(C10>B49,C49)))))) -> 6 | D15: 6 | E15: 6
B16: PD, Parabolic Depth (ft) | C16: =C11/C17 -> 0.67 | D16: 0.67 | E16: 0.67
B17: Width Depth Ratio (W/PD) | C17: 15.0 | D17: =D11/D16 -> 15.0 | E17: =E11/E16 -> 15.0
B18: Manning's n Value | C18: =C14^(1/6)/(21.6*LOG(C14/(C15/12))+14) -> 0.056 | D18: =D14^(1/6)/(21.6*LOG(D14/(D15/12))+14) -> 0.056 | E18: =E14^(1/6)/(21.6*LOG(E14/(E15/12))+14) -> 0.056
B19: Slope (ft/ft) | C19: =C13/C12 -> 10.00% | D19: =D13/D12 -> 10.00% | E19: =E13/E12 -> 10.00%
B20: Rock Unit Weight (lbs/cf) | C20: 165.0 | D20: 165.0 | E20: 165.0
B21: Top Width at Depth | C21: =C11/(C16/C14)^0.5 -> 10.0 | D21: =D11/(D16/D14)^0.5 -> 10.0 | E21: =E11/(E16/E14)^0.5 -> 10.0
B22: Flow area (sf) | C22: =2/3*C14*C21 -> 4.4 | D22: =2/3*D14*D21 -> 4.4 | E22: =2/3*E14*E21 -> 4.4
B23: Hydraulic Radius | C23: =2*C21^2*C14/(3*C21^2+8*C14^2) -> 0.44 | D23: =2*D21^2*D14/(3*D21^2+8*D14^2) -> 0.44 | E23: 0.44
B24: Froude | C24: =C29/SQRT(32.2*C14) -> 1.05 | D24: =D29/SQRT(32.2*D14) -> 1.05 | E24: =E29/SQRT(32.2*E14) -> 1.05
B25: Isbash Maximum Velocity (ft/s) | C25: =IF(C24<=1,1.2*(2*32.2*(C20-62.4)/(62.4))^0.5*(C15/12)^0.5,0.86*(2*32.2*(C20-62.4)/(62.4))^0.5*(C15/12)^0.5) -> 6.26 | D25: =IF(D24<=1,1.2*(2*32.2*(D20-62.4)/(62.4))^0.5*(D15/12)^0.5,0.86*(2*32.2*(D20-62.4)/(62.4))^0.5*(D15/12)^0.5) -> 6.26 | E25: =IF(E24<=1,1.2*(2*32.2*(E20-62.4)/(62.4))^0.5*(E15/12)^0.5,0.86*(2*32.2*(E20-62.4)/(62.4))^0.5*(E15/12)^0.5) -> 6.26
B26: Depth ("A") at TW/4 offset from centerline | C26: =3/4*C16 -> 0.50 | D26: =3/4*D16 -> 0.50 | E26: 0.50
B28: Calculated Flow at Design Depth (cfs) | C28: =1.49/C18*C22*C23^(2/3)*C19^0.5 -> 21.6 | D28: =1.49/D18*D22*D23^(2/3)*D19^0.5 -> 21.6 | E28: 21.6
B29: Calculated Velocity (ft/s) | C29: =C28/C22 -> 4.86 | D29: =D28/D22 -> 4.86 | E29: 4.86
B30: Does the proposed section provide adequate conveyance? | C30: =IF(C28>=C10,"YES","NO") -> YES | D30: =IF(D28>=D10,"YES","NO") -> YES | E30: YES
B31: Is the proposed velocity less than the maximum allowable velocity? | C31: =IF(C29<C25,"YES","NO") -> YES | D31: =IF(D29<D25,"YES","NO") -> YES | E31: =IF(E29<E25,"YES","NO") -> YES
B33: Width Depth Ratio note | C33: =IF(C17<=10, "W/D <= 10, Note: Designers are encouraged to customize results to site specific dimensions. In general, the County prefers a width-depth ratio greater than 10 when site conditions allow.","W/D>10") -> W/D>10
B34: Parabolic Depth note | C34: =IF(C16>2,"PD>2.0, Note: Designers are strongly encouraged to customize results to site specific dimensions. Parabolic depths exceeding 2.0 feet are discouraged as excessively high berms may be required to tie-in structures. Consider increasing W/D ratio.","PD<=2.0") -> PD<=2.0
B43: Recommended riffle stone size for a given Q100
B44: Q100, cfs ≤ | C44: Max D50, inches
B45: 15 | C45: 6
B46: 125 | C46: 9
B47: 500 | C47: 12
B48: 1500 | C48: 18
B49: 2000 | C49: 24

Sheet Cascade Sizing
B1: SPSC Sizing Spreadsheet
B2: (Based on Anne Arundel County SPSC Guidelines, 2022)
B4: Designer must select/input
B5: Calculated value/Designer shall not change
B6: Default values provided. Advanced designer may change to customize to site specific design
B8: Cascade Weir Sizing
C9: Q100 | D9: Q10 | E9: Q2
B10: Design Flow (cfs) | C10: 0.0 | D10: 0.0 | E10: 0.0
B11: Width (ft) | C11: 10.0 | D11: =C11 -> 10.0 | E11: =C11 -> 10.0
B12: L, Length (ft) | C12: 6.0 | D12: 6.0 | E12: 6.0
B13: H, Height (ft) | C13: 3.0 | D13: 3.0 | E13: 3.0
B14: Design Depth of flow (ft) | C14: 0.80 | D14: 0.80 | E14: 0.80
B15: D50 (in) | C15: 30 | D15: 30 | E15: 30
B16: PD, Parabolic Depth (ft) | C16: 2.00 | D16: 2.00 | E16: 2.00
B17: Manning's n Value | C17: 0.050 | D17: 0.050 | E17: 0.050
B18: Slope (ft/ft) | C18: =C13/C12 -> 50.00% | D18: =D13/D12 -> 50.00% | E18: =E13/E12 -> 50.00%
B19: Rock Unit Weight (lbs/cf) | C19: 165.0 | D19: 165.0 | E19: 165.0
B20: Top Width at Depth | C20: =C11/(C16/C14)^0.5 -> 6.3 | D20: =D11/(D16/D14)^0.5 -> 6.3 | E20: =E11/(E16/E14)^0.5 -> 6.3
B21: Flow area (sf) | C21: =2/3*C14*C20 -> 3.4 | D21: =2/3*D14*D20 -> 3.4 | E21: =2/3*E14*E20 -> 3.4
B22: Hydraulic Radius | C22: =2*C20^2*C14/(3*C20^2+8*C14^2) -> 0.51 | D22: =2*D20^2*D14/(3*D20^2+8*D14^2) -> 0.51 | E22: =2*E20^2*E14/(3*E20^2+8*E14^2) -> 0.51
B23: Froude | C23: =C28/SQRT(32.2*C14) -> 2.66 | D23: =D28/SQRT(32.2*D14) -> 2.66 | E23: =E28/SQRT(32.2*E14) -> 2.66
B24: Isbash Maximum Velocity (ft/s) | C24: =IF(C23<=1,1.2*(2*32.2*(C19-62.4)/(62.4))^0.5*(C15/12)^0.5,0.86*(2*32.2*(C19-62.4)/(62.4))^0.5*(C15/12)^0.5) -> 13.99 | D24: =IF(D23<=1,1.2*(2*32.2*(D19-62.4)/(62.4))^0.5*(D15/12)^0.5,0.86*(2*32.2*(D19-62.4)/(62.4))^0.5*(D15/12)^0.5) -> 13.99 | E24: =IF(E23<=1,1.2*(2*32.2*(E19-62.4)/(62.4))^0.5*(E15/12)^0.5,0.86*(2*32.2*(E19-62.4)/(62.4))^0.5*(E15/12)^0.5) -> 13.99
B25: Depth ("A") at TW/4 offset from centerline | C25: =3/4*C16 -> 1.50 | D25: =3/4*D16 -> 1.50 | E25: =3/4*E16 -> 1.50
B27: Calculated Flow at Design Depth (cfs) | C27: =1.49/C17*C21*C22^(2/3)*C18^0.5 -> 45.5 | D27: =1.49/D17*D21*D22^(2/3)*D18^0.5 -> 45.5 | E27: 45.5
B28: Calculated Velocity (ft/s) | C28: =C27/C21 -> 13.5 | D28: =D27/D21 -> 13.5 | E28: 13.5
B29: Does the proposed section provide adequate conveyance? | C29: =IF(C27>=C10,"YES","NO") -> YES | D29: =IF(D27>=D10,"YES","NO") -> YES | E29: =IF(E27>=E10,"YES","NO") -> YES
B30: Is the proposed velocity less than the maximum allowable velocity? | C30: =IF(C28<C24,"YES","NO") -> YES | D30: =IF(D28<D24,"YES","NO") -> YES | E30: =IF(E28<E24,"YES","NO") -> YES
B31: Does the proposed cascade have a slope of <= 0.5 ft/ft? | C31: =IF(C18<=0.5, "YES", "NO") -> YES
B33: Scour Depth - pools downstream of cascades
B34: Q100, cfs | C34: =C10 -> 0.0
B35: Pool Max Depth, ft | C35: 1.5
B36: H, Height of upstream grade control structure, ft | C36: =C13 -> 3.0
B37: TW, Top width of the upstream grade control structure, ft | C37: =C11 -> 10.0
B38: y, depth of Q100 in downstream/receiving structure | C38: 0
B39: K, coefficient | C39: 1.32
B41: pd, Calculated scour depth, ft | C41: =C39*C36^0.225*(C34/C37)^0.54-C38 -> 0.0
B42: Potential depth of scour below design pool bottom, ft | C42: =C41-C35 -> -1.5
B43: Minimum footer boulder depth below pool bottom, ft | C43: =IF(C42<2,2,C42+1) -> 2.0
